bitfinex/quotes_BTCUSD_20251011
["timestamp","ask_amount","ask_price","bid_price","bid_amount"]
[1760179086236,0.17845009,112440.0,112430.0,0.09073]
[1760179086946,0.17845009,112440.0,112430.0,0.04991]
[1760179087373,0.17788846,112430.0,112420.0,0.24151153]
[1760179087568,0.17788846,112430.0,112420.0,0.27029153]
[1760179087783,0.17845009,112440.0,112420.0,0.27029153]
[1760179088000,0.17845009,112440.0,112430.0,0.02113]
[1760179088195,0.17788846,112430.0,112420.0,0.22947153]
[1760179088414,0.17788846,112430.0,112420.0,0.27029153]
[1760179088825,0.17788846,112430.0,112420.0,0.37028602]
[1760179089346,0.17845009,112440.0,112420.0,0.37028602]
[1760179089558,0.17845009,112440.0,112430.0,0.06195]
[1760179089838,0.17845009,112440.0,112430.0,0.02113]
[1760179090043,0.17788846,112430.0,112420.0,0.24151153]
[1760179090259,0.17788846,112430.0,112420.0,0.27029153]
[1760179091007,0.17788846,112430.0,112420.0,0.37028602]
[1760179092023,0.51788846,112430.0,112420.0,0.10145174]
[1760179092396,0.51788846,112430.0,112420.0,0.20145169]
[1760179093137,0.51788846,112430.0,112420.0,0.00145725]
[1760179093546,0.59224466,112430.0,112420.0,0.00145725]
[1760179094307,0.56724467,112430.0,112420.0,0.00145725]
[1760179095016,0.53709277,112430.0,112420.0,0.00145725]
[1760179095227,0.51788846,112430.0,112420.0,0.00145725]
[1760179099132,0.54804036,112430.0,112420.0,0.00145725]
[1760179100614,0.51788846,112430.0,112420.0,0.00145725]
[1760179103066,0.54804036,112430.0,112420.0,0.00145725]
[1760179103203,0.1779676,112380.0,112370.0,0.02113]
[1760179103405,0.1779676,112380.0,112370.0,0.0005055]
[1760179103616,0.1779676,112380.0,112370.0,0.00339473]
[1760179103839,0.1779676,112380.0,112370.0,0.10338922]
[1760179104207,0.1779676,112380.0,112370.0,0.13216922]
[1760179104403,0.1779676,112380.0,112370.0,0.20438917]
[1760179106031,0.1779676,112380.0,112370.0,0.23316917]
[1760179106248,0.1779676,112380.0,112370.0,0.25429917]
[1760179106456,0.1779676,112380.0,112370.0,0.29796917]
[1760179106886,0.1779676,112380.0,112370.0,0.25429917]
[1760179107794,0.1779676,112380.0,112370.0,0.29796917]
[1760179108388,0.1779676,112380.0,112370.0,0.25429917]
[1760179111644,0.1779676,112380.0,112370.0,0.22551917]
[1760179112719,0.1779676,112380.0,112370.0,0.20438917]
[1760179113749,0.1779676,112380.0,112370.0,0.23244917]
[1760179114111,0.1779676,112380.0,112370.0,0.20438917]
[1760179114349,0.1779676,112380.0,112370.0,0.23244917]
[1760179114468,0.1779676,112380.0,112370.0,0.25300917]
[1760179114668,0.1779676,112380.0,112370.0,0.29667917]
[1760179115100,0.1779676,112380.0,112370.0,0.25300917]
[1760179115933,0.1779676,112380.0,112370.0,0.29667917]
[1760179117198,0.1779676,112380.0,112370.0,0.25300917]
[1760179117428,0.1779676,112380.0,112370.0,0.29667917]
[1760179118295,0.1779676,112380.0,112370.0,0.25300917]
[1760179120084,0.1779676,112380.0,112370.0,0.20438917]
[1760179120520,0.1779676,112380.0,112370.0,0.23176917]
[1760179120986,0.1779676,112380.0,112370.0,0.20438917]
[1760179120987,0.5179676,112380.0,112370.0,0.20438917]
[1760179121989,0.5179676,112380.0,112370.0,0.00038932]
[1760179122559,0.54474835,112380.0,112370.0,0.00038932]
[1760179123119,0.53715912,112380.0,112370.0,0.00038932]
[1760179123657,0.53815912,112380.0,112370.0,0.00038932]
[1760179123857,0.5189676,112380.0,112370.0,0.00038932]
[1760179127520,0.54574835,112380.0,112370.0,0.00038932]
[1760179128733,0.5189676,112380.0,112370.0,0.00038932]
[1760179132946,0.4755021,112380.0,112370.0,0.00038932]
[1760179133731,0.4755021,112380.0,112370.0,0.02776932]
[1760179134139,0.4755021,112380.0,112370.0,0.00038932]
[1760179135333,0.50228103,112380.0,112370.0,0.00038932]
[1760179137802,0.57661936,112380.0,112370.0,1e-08]
[1760179139070,0.57561936,112380.0,112370.0,1e-08]
[1760179139284,0.57661936,112380.0,112370.0,1e-08]
[1760179141294,0.52146747,112380.0,112370.0,1e-08]
[1760179141466,0.52979058,112380.0,112370.0,1e-08]
[1760179141868,0.58494247,112380.0,112370.0,1e-08]
[1760179142998,0.61701572,112380.0,112370.0,1e-08]
[1760179144731,1.05821572,112380.0,112370.0,1e-08]
[1760179149191,1.02614247,112380.0,112370.0,1e-08]
[1760179152510,1.05821572,112380.0,112370.0,1e-08]
[1760179153702,1.02614247,112380.0,112370.0,1e-08]
[1760179155723,0.58494247,112380.0,112370.0,1e-08]
[1760179157209,0.61701572,112380.0,112370.0,1e-08]
[1760179157334,0.58494247,112380.0,112370.0,1e-08]
[1760179157532,0.61701572,112380.0,112370.0,1e-08]
[1760179158353,0.58494247,112380.0,112370.0,1e-08]
[1760179158553,0.58495593,112380.0,112370.0,1e-08]
[1760179158773,0.61702918,112380.0,112370.0,1e-08]
[1760179167508,0.66513906,112380.0,112370.0,1e-08]
[1760179167743,0.66979239,112380.0,112370.0,1e-08]
[1760179168157,0.37325789,112380.0,112370.0,1e-08]
[1760179168389,0.27387486,112380.0,112370.0,1e-08]
[1760179170294,0.61387486,112380.0,112370.0,1e-08]
[1760179170509,0.63307476,112380.0,112370.0,1e-08]
[1760179173961,0.57792287,112380.0,112370.0,1e-08]
[1760179174383,0.63307476,112380.0,112370.0,1e-08]
[1760179176897,0.73307475,112380.0,112370.0,1e-08]
[1760179177061,0.765148,112380.0,112370.0,1e-08]
[1760179178315,0.78118463,112380.0,112370.0,1e-08]
[1760179179299,0.81324846,112380.0,112370.0,1e-08]
[1760179179444,0.78824847,112380.0,112370.0,1e-08]
[1760179179646,0.81324846,112380.0,112370.0,1e-08]
[1760179181579,0.71324847,112380.0,112370.0,1e-08]
[1760179181961,0.81324846,112380.0,112370.0,1e-08]
[1760179183095,0.71324847,112380.0,112370.0,1e-08]
[1760179183511,0.66513859,112380.0,112370.0,1e-08]
[1760179184258,0.76513858,112380.0,112370.0,1e-08]
[1760179184459,0.71324847,112380.0,112370.0,1e-08]
[1760179184664,0.81324846,112380.0,112370.0,1e-08]
[1760179186692,0.71324847,112380.0,112370.0,1e-08]
[1760179186887,0.81324846,112380.0,112370.0,1e-08]
[1760179187702,0.71324847,112380.0,112370.0,1e-08]
[1760179187840,0.81324846,112380.0,112370.0,1e-08]
[1760179188366,0.71324847,112380.0,112370.0,1e-08]
[1760179188571,0.81324846,112380.0,112370.0,1e-08]
[1760179189100,0.71324847,112380.0,112370.0,1e-08]
[1760179189288,0.81324846,112380.0,112370.0,1e-08]
[1760179190278,0.71324847,112380.0,112370.0,1e-08]
[1760179190480,0.81324846,112380.0,112370.0,1e-08]
[1760179191633,0.71324847,112380.0,112370.0,1e-08]
[1760179191902,0.81324846,112380.0,112370.0,1e-08]
[1760179194145,5.84129445,112380.0,112370.0,1e-08]
[1760179194820,5.79318457,112380.0,112370.0,1e-08]
[1760179195134,5.87115654,112380.0,112370.0,1e-08]
[1760179195512,0.51804682,112330.0,112320.0,0.0004]
[1760179195841,0.51855101,112330.0,112320.0,0.0004]
[1760179196053,0.51855101,112330.0,112320.0,0.00329117]
[1760179196266,0.57549428,112330.0,112320.0,0.00329117]
[1760179200119,0.62435989,112330.0,112320.0,1e-08]
[1760179201224,0.62535989,112330.0,112320.0,1e-08]
[1760179201398,0.54824629,112300.0,112290.0,0.0004]
[1760179202025,0.52166783,112300.0,112290.0,0.0004]
[1760179205449,0.55181973,112300.0,112290.0,0.0004]
[1760179206902,0.55181973,112300.0,112290.0,0.00213554]
[1760179210122,0.52166783,112300.0,112290.0,0.00213554]
[1760179211974,0.52166783,112300.0,112290.0,0.02930554]
[1760179211975,0.18166783,112300.0,112290.0,0.02930554]
[1760179212185,0.18166783,112300.0,112290.0,0.04859554]
[1760179212360,0.18166783,112300.0,112290.0,0.00213554]
[1760179212563,0.52166783,112300.0,112290.0,0.00213554]
[1760179216308,0.51930803,112300.0,112290.0,0.00213554]
[1760179219526,0.54945993,112300.0,112290.0,0.00213554]
[1760179219908,0.56862965,112300.0,112290.0,0.00213554]
[1760179223739,0.53847775,112300.0,112290.0,0.00213554]
[1760179241662,0.53847775,112300.0,112290.0,0.04798554]
[1760179242773,0.54313323,112300.0,112290.0,0.04798554]
[1760179243414,0.52396351,112300.0,112290.0,0.04798554]
[1760179243628,0.52396351,112300.0,112290.0,0.00213554]
[1760179244074,0.52396351,112300.0,112290.0,0.02920554]
[1760179244295,0.52396351,112300.0,112290.0,0.08715554]
[1760179246287,0.52396351,112300.0,112290.0,0.04798554]
[1760179247216,0.52396351,112300.0,112290.0,0.02091554]
[1760179247428,0.52396351,112300.0,112290.0,0.04798554]
[1760179248772,0.52396351,112300.0,112290.0,0.00213554]
[1760179251460,0.55411541,112300.0,112290.0,0.00213554]
[1760179257490,0.55387943,112300.0,112290.0,0.00213554]
[1760179259487,0.57311932,112300.0,112290.0,0.00213554]
[1760179260510,0.57411932,112300.0,112290.0,0.00213554]
[1760179261141,0.57311932,112300.0,112290.0,0.00213554]
[1760179261359,0.57411932,112300.0,112290.0,0.00213554]
[1760179262008,0.57511932,112300.0,112290.0,0.00213554]
[1760179262649,0.60011931,112300.0,112290.0,1e-08]
[1760179262848,0.60846714,112300.0,112290.0,1e-08]
[1760179263480,0.38874549,112300.0,112290.0,1e-08]
[1760179263683,0.54759999,112300.0,112290.0,1e-08]
[1760179263860,0.57041373,112300.0,112290.0,1e-08]
[1760179264423,5.62041373,112300.0,112290.0,1e-08]
[1760179265903,5.61941373,112300.0,112290.0,1e-08]
[1760179266105,5.61841373,112300.0,112290.0,1e-08]
[1760179266508,5.62241373,112300.0,112290.0,1e-08]
[1760179267868,0.57241373,112300.0,112290.0,1e-08]
[1760179268692,0.53906591,112300.0,112290.0,1e-08]
[1760179270526,5.62239775,112300.0,112290.0,1e-08]
[1760179270942,5.62239785,112300.0,112290.0,1e-08]
[1760179271370,5.6140659,112300.0,112290.0,1e-08]
[1760179271794,5.62239729,112300.0,112290.0,1e-08]
[1760179272006,0.54314196,112270.0,112260.0,0.0001333]
[1760179272172,0.54830974,112260.0,112250.0,0.0004]
[1760179272825,0.57512096,112260.0,112250.0,0.0004]
[1760179273355,0.58028222,112260.0,112250.0,0.0004]
[1760179277832,0.58028222,112260.0,112250.0,0.0027152]
[1760179278229,0.58128222,112260.0,112250.0,0.0027152]
[1760179278694,0.58228222,112260.0,112250.0,0.0027152]
[1760179279360,0.57762484,112260.0,112250.0,0.0027152]
[1760179281706,0.54747294,112260.0,112250.0,0.0027152]
[1760179281883,0.20747294,112260.0,112250.0,0.0299552]
[1760179282125,0.54747294,112260.0,112250.0,0.0299552]
[1760179282329,0.20747294,112260.0,112250.0,0.0860352]
[1760179282737,0.20747294,112260.0,112250.0,0.094597]
[1760179283332,0.54747294,112260.0,112250.0,0.094597]
[1760179283729,0.54747294,112260.0,112250.0,0.0860352]
[1760179284246,0.54647294,112260.0,112250.0,0.09518633]
[1760179284692,0.54547294,112260.0,112250.0,0.09518633]
[1760179285055,0.54547294,112260.0,112250.0,0.0860352]
[1760179285234,0.54547294,112260.0,112250.0,0.09359669]
[1760179287760,0.35357459,112260.0,112250.0,0.09359669]
[1760179287981,0.53173243,112260.0,112250.0,0.09359669]
[1760179289174,0.53173243,112260.0,112250.0,0.0860352]
[1760179289516,0.53173243,112260.0,112250.0,0.0865752]
[1760179289927,0.53173243,112260.0,112250.0,0.0487452]
[1760179290130,0.53173243,112260.0,112250.0,0.0865752]
[1760179290709,0.53173243,112260.0,112250.0,0.09575878]
[1760179292144,0.01357459,112260.0,112250.0,0.27393249]
[1760179292335,0.17812882,112280.0,112260.0,0.17815069]
[1760179292544,0.17812882,112280.0,112270.0,0.08367]
[1760179292823,0.51812882,112280.0,112270.0,0.08367]
[1760179293027,0.19167986,112290.0,112270.0,0.26181197]
[1760179293229,0.20492165,112280.0,112270.0,0.22398197]
[1760179293523,0.54492165,112280.0,112270.0,0.22398197]
[1760179293725,0.36679554,112280.0,112270.0,0.22398197]
[1760179293927,0.36679554,112280.0,112270.0,0.26181197]
[1760179294132,0.54492165,112280.0,112270.0,0.08367]
[1760179295394,0.54492165,112280.0,112270.0,0.26181197]
[1760179295834,0.36679554,112280.0,112270.0,0.26181197]
[1760179296035,0.17811074,112290.0,112280.0,0.17812611]
[1760179296239,0.17811074,112290.0,112280.0,0.26179611]
[1760179296435,0.02679158,112290.0,112280.0,0.26179611]
[1760179296613,0.20490183,112290.0,112280.0,0.26179611]
[1760179299844,0.02679158,112290.0,112280.0,0.26179611]
[1760179300048,0.20490183,112290.0,112280.0,0.26179611]
[1760179301424,0.20490183,112290.0,112280.0,0.08367]
[1760179302936,0.17811025,112290.0,112280.0,0.08367]
[1760179305328,0.17811025,112290.0,112280.0,0.08424865]
[1760179306884,0.17811025,112290.0,112280.0,0.26237476]
[1760179308696,0.17811025,112290.0,112280.0,0.08424865]
[1760179310331,0.17811025,112290.0,112280.0,0.26237476]
[1760179311520,0.18795248,112300.0,112280.0,0.26237476]
[1760179311722,0.17811025,112290.0,112280.0,0.22454476]
[1760179311944,0.17811025,112290.0,112280.0,0.04641865]
[1760179312294,0.17811025,112290.0,112280.0,0.26238476]
[1760179312493,0.17811025,112290.0,112280.0,0.08425865]
[1760179312922,0.17811025,112290.0,112280.0,0.26238476]
[1760179313553,0.17811025,112290.0,112280.0,0.08425865]
[1760179314166,0.51811025,112290.0,112280.0,0.00057865]
[1760179314614,0.54490844,112290.0,112280.0,0.00057865]
[1760179315222,0.54956453,112290.0,112280.0,0.00057865]
[1760179315859,0.57971643,112290.0,112280.0,0.00057865]
[1760179316070,0.51814197,112270.0,112260.0,5.038e-05]
[1760179316896,0.56890387,112270.0,112260.0,5.038e-05]
[1760179317137,0.58808877,112270.0,112260.0,5.038e-05]
[1760179317718,0.59008877,112270.0,112260.0,5.038e-05]
[1760179318521,0.57090387,112270.0,112260.0,5.038e-05]
[1760179318929,0.56890387,112270.0,112260.0,5.038e-05]
[1760179319340,0.57090387,112270.0,112260.0,5.038e-05]
[1760179320137,0.56990387,112270.0,112260.0,5.038e-05]
[1760179320493,0.57090387,112270.0,112260.0,5.038e-05]
[1760179320698,0.56990387,112270.0,112260.0,5.038e-05]
[1760179321109,0.54075197,112270.0,112260.0,5.038e-05]
[1760179321514,0.54075197,112270.0,112260.0,0.04501038]
[1760179321686,0.54075197,112270.0,112260.0,0.04616793]
[1760179321948,0.54075197,112270.0,112260.0,0.02063793]
[1760179322163,0.98095197,112270.0,112260.0,0.02063793]
[1760179322325,0.98195197,112270.0,112260.0,0.00120793]
[1760179322525,0.98095197,112270.0,112260.0,0.00120793]
[1760179322948,0.97995197,112270.0,112260.0,0.02673793]
[1760179323267,0.98195197,112270.0,112260.0,0.02673793]
[1760179323691,0.98095197,112270.0,112260.0,0.00120793]
[1760179329261,0.53975197,112270.0,112260.0,0.00120793]
[1760179332097,0.53975197,112270.0,112260.0,0.08452793]
[1760179332293,0.53975197,112270.0,112260.0,0.04616793]
[1760179333966,0.53975197,112270.0,112260.0,0.08452793]
[1760179339550,0.48674956,112270.0,112260.0,0.08452793]
[1760179339754,0.46613956,112270.0,112260.0,0.08452793]
[1760179341231,0.17914197,112270.0,112260.0,0.08452793]
[1760179346300,0.17914197,112270.0,112260.0,0.47197005]
[1760179346465,0.17914197,112270.0,112260.0,0.46268021]
[1760179347020,0.17814197,112270.0,112260.0,0.46268021]
[1760179347766,0.51814197,112270.0,112260.0,0.46268021]
[1760179348269,0.55942245,112290.0,112260.0,0.46268021]
[1760179348471,0.51812611,112280.0,112270.0,0.04727317]
[1760179348714,0.51812611,112280.0,112270.0,0.02018]
[1760179348920,0.51812611,112280.0,112270.0,0.04714]
[1760179349333,0.51812611,112280.0,112270.0,0.08475]
[1760179349688,0.51812611,112280.0,112270.0,0.09388215]
[1760179351253,0.51812611,112280.0,112270.0,0.08475]
[1760179352552,0.51812611,112280.0,112270.0,0.09543159]
[1760179352760,0.51812611,112280.0,112270.0,0.27357356]
[1760179352960,0.51812611,112280.0,112270.0,0.08475]
[1760179353220,0.51812611,112280.0,112270.0,0.09488914]
[1760179353437,0.51812611,112280.0,112270.0,0.27303111]
[1760179353657,0.51812611,112280.0,112270.0,0.08475]
[1760179353852,0.51812611,112280.0,112270.0,0.08532872]
[1760179355505,0.51812611,112280.0,112270.0,0.04771872]
[1760179356137,0.51812611,112280.0,112270.0,0.08532872]
[1760179356346,0.51812611,112280.0,112270.0,0.04771872]
[1760179356559,0.51812611,112280.0,112270.0,0.02753872]
[1760179356762,0.51812611,112280.0,112270.0,0.04771872]
[1760179356970,0.51912611,112280.0,112270.0,0.04771872]
[1760179358299,0.51912611,112280.0,112270.0,0.00057872]
[1760179358716,0.54592808,112280.0,112270.0,0.00057872]
[1760179359784,0.54492808,112280.0,112270.0,0.00057872]
[1760179360288,0.54592808,112280.0,112270.0,0.00057872]
[1760179360705,0.54492808,112280.0,112270.0,0.00057872]
[1760179360929,0.54592808,112280.0,112270.0,0.00057872]
[1760179361141,0.54692808,112280.0,112270.0,0.00057872]
[1760179365261,0.54692808,112280.0,112270.0,0.02484872]
[1760179365531,0.54692808,112280.0,112270.0,0.08333872]
[1760179365733,0.54692808,112280.0,112270.0,0.04432872]
[1760179365958,0.54692808,112280.0,112270.0,0.02005872]
[1760179366374,0.54692808,112280.0,112270.0,0.04432872]
[1760179370815,0.20692808,112280.0,112270.0,0.08333872]
[1760179371016,0.18012611,112280.0,112270.0,0.09298772]
[1760179371500,0.18012611,112280.0,112270.0,0.26148069]
[1760179371501,0.002,112280.0,112270.0,0.26148069]
[1760179371701,0.002,112280.0,112270.0,0.29163259]
[1760179371914,0.001,112280.0,112270.0,0.29163259]
[1760179372384,0.17906447,112290.0,112270.0,0.29163259]
[1760179372605,0.17906447,112290.0,112280.0,0.05849]
[1760179373236,0.17906447,112290.0,112280.0,0.08276]
[1760179373729,0.51906447,112290.0,112280.0,0.08276]
[1760179377734,0.51812611,112280.0,112270.0,0.05885872]
[1760179378361,0.51812611,112280.0,112270.0,0.08343872]
[1760179379267,0.51812611,112280.0,112270.0,0.04463872]
[1760179379610,0.54492238,112280.0,112270.0,0.04463872]
[1760179381205,0.54492238,112280.0,112270.0,0.08343872]
[1760179383798,0.54492238,112280.0,112270.0,0.04463872]
[1760179384000,0.54492238,112280.0,112270.0,0.08343872]
[1760179385748,0.54492238,112280.0,112270.0,0.26158069]
[1760179385949,0.51812611,112280.0,112270.0,0.08343872]
[1760179386164,0.51812611,112280.0,112270.0,0.09313943]
[1760179387081,0.51812611,112280.0,112270.0,0.08343872]
[1760179390194,0.51812611,112280.0,112270.0,0.04463872]
[1760179391859,0.51812611,112280.0,112270.0,0.02005872]
[1760179392341,0.51812611,112280.0,112270.0,0.04463872]
[1760179394480,0.51812611,112280.0,112270.0,0.08343872]
[1760179395535,0.54492427,112280.0,112270.0,0.08343872]
[1760179397354,0.54492427,112280.0,112270.0,0.26158069]
[1760179397598,0.54492427,112280.0,112270.0,0.08343872]
[1760179399810,0.54492427,112280.0,112270.0,0.27205684]
[1760179400014,0.54492427,112280.0,112270.0,0.26158069]
[1760179400428,0.20492427,112280.0,112270.0,0.26158069]
[1760179401660,0.17812611,112280.0,112270.0,0.26158069]
[1760179403208,0.17812611,112280.0,112270.0,0.08343872]
[1760179405975,0.17812611,112280.0,112270.0,0.09318818]
[1760179406178,0.17812611,112280.0,112270.0,0.08343872]
[1760179407601,0.20492028,112280.0,112270.0,0.08343872]
[1760179411794,0.17812611,112280.0,112270.0,0.26158069]
[1760179413935,0.20585596,112290.0,112270.0,0.26158069]
[1760179414135,0.20585596,112290.0,112280.0,0.019]
[1760179414333,0.20585596,112290.0,112280.0,0.05472]
[1760179414567,0.20585596,112290.0,112280.0,0.07901]
[1760179423244,0.17906447,112290.0,112280.0,0.07901]
[1760179424068,0.17906374,112290.0,112280.0,0.07901]
[1760179425242,0.17665282,112290.0,112280.0,0.07901]
[1760179426315,0.17807853,112310.0,112290.0,0.17811025]
[1760179426316,0.17808001,112310.0,112290.0,0.17811025]
[1760179426523,0.17808001,112310.0,112300.0,0.05355694]
[1760179426731,0.17808001,112310.0,112300.0,0.09225694]
[1760179427791,0.17808001,112310.0,112300.0,0.09230732]
[1760179427999,0.17808001,112310.0,112300.0,0.08177038]
[1760179428208,0.17808001,112310.0,112300.0,0.07878402]
[1760179429036,0.17908001,112310.0,112300.0,0.07878402]
[1760179430027,0.17808001,112310.0,112300.0,0.05178127]
[1760179430199,0.17808001,112310.0,112300.0,0.07545127]
[1760179430593,0.21594001,112310.0,112300.0,0.04307038]
[1760179430822,0.21594001,112310.0,112300.0,0.01940038]
[1760179431032,0.21594001,112310.0,112300.0,0.04307038]
[1760179432044,0.21594001,112310.0,112300.0,0.08177038]
[1760179432252,0.21594001,112310.0,112300.0,0.04307038]
[1760179432437,0.21594001,112310.0,112300.0,0.08177038]
[1760179432644,0.19158001,112310.0,112300.0,0.08177038]
[1760179433400,0.19623508,112310.0,112300.0,0.08177038]
[1760179434461,0.22059508,112310.0,112300.0,0.08177038]
[1760179435568,0.24738508,112310.0,112300.0,0.04307038]
[1760179435843,0.22302508,112310.0,112300.0,0.08177038]
[1760179436053,0.19623508,112310.0,112300.0,0.08177038]
[1760179437189,0.22186508,112310.0,112300.0,0.08177038]
[1760179437388,0.19739203,112310.0,112300.0,0.08177038]
[1760179438692,0.22302203,112310.0,112300.0,0.04307038]
[1760179438895,0.18389203,112310.0,112300.0,0.08072038]
[1760179440492,0.22352203,112310.0,112300.0,0.04307038]
[1760179440903,0.22352203,112310.0,112300.0,0.08072038]
[1760179441333,0.22352203,112310.0,112300.0,0.04307038]
[1760179441752,0.25031277,112310.0,112300.0,0.04307038]
[1760179442458,0.25031277,112310.0,112300.0,5.038e-05]
[1760179442614,0.25031277,112310.0,112300.0,0.02543038]
[1760179442837,0.25031277,112310.0,112300.0,0.04511038]
[1760179443673,0.62230277,112310.0,112300.0,5.038e-05]
[1760179444851,0.62330277,112310.0,112300.0,5.038e-05]
[1760179445244,0.62430277,112310.0,112300.0,5.038e-05]
[1760179448056,0.62230277,112310.0,112300.0,5.038e-05]
[1760179448405,0.62330277,112310.0,112300.0,5.038e-05]
[1760179448614,0.59231277,112310.0,112300.0,5.038e-05]
[1760179448815,0.62330277,112310.0,112300.0,5.038e-05]
[1760179449023,0.62330277,112310.0,112300.0,0.02543038]
[1760179449024,1.03151277,112310.0,112300.0,0.02543038]
[1760179449224,0.99188277,112310.0,112300.0,0.08276038]
[1760179449430,1.00588277,112310.0,112300.0,0.08276038]
[1760179449628,1.06350277,112310.0,112300.0,5.038e-05]
[1760179451608,1.06450277,112310.0,112300.0,5.038e-05]
[1760179452171,1.06550277,112310.0,112300.0,5.038e-05]
[1760179452513,0.62430277,112310.0,112300.0,5.038e-05]
[1760179454040,0.62330277,112310.0,112300.0,5.038e-05]
[1760179454467,0.62230277,112310.0,112300.0,5.038e-05]
[1760179454670,0.62330277,112310.0,112300.0,5.038e-05]
[1760179454914,0.17812611,112280.0,112270.0,0.09024256]
[1760179455135,0.17812611,112280.0,112270.0,0.13535298]
[1760179455764,0.20492324,112280.0,112270.0,0.08276042]
[1760179456577,0.24405324,112280.0,112270.0,0.04511042]
[1760179456785,0.21842324,112280.0,112270.0,0.08276042]
[1760179457007,0.24405324,112280.0,112270.0,0.08276042]
[1760179457538,0.24405324,112280.0,112270.0,0.04511042]
[1760179457935,0.28319324,112280.0,112270.0,5.042e-05]
[1760179458583,0.62319324,112280.0,112270.0,5.042e-05]
[1760179459540,0.62419324,112280.0,112270.0,5.042e-05]
[1760179460411,0.62419324,112280.0,112270.0,0.00062914]
[1760179463464,0.58505324,112280.0,112270.0,0.02600914]
[1760179463680,0.58505324,112280.0,112270.0,0.04568914]
[1760179463894,0.62884991,112280.0,112270.0,0.00062914]
[1760179466244,0.58970991,112280.0,112270.0,0.02600914]
[1760179466449,0.58970991,112280.0,112270.0,0.08151914]
[1760179466815,0.55057991,112280.0,112270.0,0.08151914]
[1760179467012,0.0324538,112280.0,112270.0,0.0911322]
[1760179467216,0.00565667,112280.0,112270.0,0.46926861]
[1760179467433,0.17812611,112280.0,112270.0,0.45965555]
[1760179467839,0.17812611,112280.0,112270.0,0.28151358]
[1760179468604,0.17812611,112280.0,112270.0,0.28251358]
[1760179469450,0.17812611,112280.0,112270.0,0.28351358]
[1760179470097,0.17812611,112280.0,112270.0,0.08351914]
[1760179470794,0.17812611,112280.0,112270.0,0.08151914]
[1760179470997,0.17812611,112280.0,112270.0,0.08251914]
[1760179472864,0.17812611,112280.0,112270.0,0.08151914]
[1760179473984,0.17812611,112280.0,112270.0,0.09091172]
[1760179474363,0.17812611,112280.0,112270.0,0.09191172]
[1760179475335,0.17812611,112280.0,112270.0,0.09637936]
[1760179475521,0.17812611,112280.0,112270.0,0.09537936]
[1760179475728,0.17812611,112280.0,112270.0,0.08151914]
[1760179475922,0.17812611,112280.0,112270.0,0.26066111]
[1760179476136,0.17812611,112280.0,112270.0,0.08251914]
[1760179476356,0.17812611,112280.0,112270.0,0.08151914]
[1760179476571,0.17812611,112280.0,112270.0,0.08251914]
[1760179476777,0.17812611,112280.0,112270.0,0.18251363]
[1760179477422,0.17812611,112280.0,112270.0,0.28151358]
[1760179477625,0.17812611,112280.0,112270.0,0.28251358]
[1760179478047,0.17812611,112280.0,112270.0,0.08251914]
[1760179478884,0.17812611,112280.0,112270.0,0.26166111]
[1760179479098,0.17812611,112280.0,112270.0,0.18251363]
[1760179479519,0.17812611,112280.0,112270.0,0.3616556]
[1760179479732,0.2058664,112290.0,112270.0,0.46065555]
[1760179479939,0.17812611,112280.0,112270.0,0.24423358]
[1760179480177,0.17812611,112280.0,112270.0,0.04523914]
[1760179480626,0.17812611,112280.0,112270.0,0.3599656]
[1760179481241,0.17812611,112280.0,112270.0,0.45996555]
[1760179481930,0.17812611,112280.0,112270.0,0.46096555]
[1760179482348,0.17812611,112280.0,112270.0,0.28282358]
[1760179482571,0.17907532,112290.0,112270.0,0.46096555]
[1760179482789,0.17812611,112280.0,112270.0,0.24623358]
[1760179483396,0.17812611,112280.0,112270.0,0.28182358]
[1760179485093,0.17812611,112280.0,112270.0,0.28282358]
[1760179489479,0.17812611,112280.0,112270.0,0.46096555]
[1760179490113,0.17812611,112280.0,112270.0,0.28282358]
[1760179493076,0.17812611,112280.0,112270.0,0.08282914]
[1760179493398,0.17812611,112280.0,112270.0,0.18282363]
[1760179494079,0.17812611,112280.0,112270.0,0.28282358]
[1760179494569,0.17812611,112280.0,112270.0,0.08282914]
[1760179495424,0.17812611,112280.0,112270.0,0.08182914]
[1760179497843,0.17812611,112280.0,112270.0,0.08082914]
[1760179498709,0.20257611,112280.0,112270.0,0.04423914]
[1760179498912,0.15640281,112290.0,112270.0,0.08136914]
[1760179499111,0.17812611,112280.0,112270.0,0.08136914]
[1760179500184,0.20492075,112280.0,112270.0,0.08136914]
[1760179501444,0.17812611,112280.0,112270.0,0.08940213]
[1760179501646,0.17812611,112280.0,112270.0,0.2675441]
[1760179501828,0.17812611,112280.0,112270.0,0.25951111]
[1760179502444,0.17812611,112280.0,112270.0,0.26051111]
[1760179502649,0.17812611,112280.0,112270.0,0.25951111]
[1760179503068,0.17812611,112280.0,112270.0,0.36051106]
[1760179503366,0.17812611,112280.0,112270.0,0.26051111]
[1760179503823,0.17812611,112280.0,112270.0,0.26151111]
[1760179504030,0.17812611,112280.0,112270.0,0.3615056]
[1760179504333,0.17812611,112280.0,112270.0,0.18336363]
[1760179504529,0.17812611,112280.0,112270.0,0.28336358]
[1760179504937,0.19168579,112300.0,112270.0,0.46050555]
[1760179505143,0.19168579,112300.0,112280.0,0.24236442]
[1760179505144,0.17812361,112290.0,112280.0,0.24236442]
[1760179505344,0.17812361,112290.0,112280.0,0.0785]
[1760179505833,0.17812361,112290.0,112280.0,0.17849449]
[1760179506307,0.17812361,112290.0,112280.0,0.27849444]
[1760179506530,0.17812361,112290.0,112280.0,0.27949444]
[1760179506944,0.17812361,112290.0,112280.0,0.28049444]
[1760179513569,0.20257361,112290.0,112280.0,0.0805]
[1760179513769,0.17812361,112290.0,112280.0,0.0805]
[1760179513969,0.24145543,112290.0,112280.0,0.04337]
[1760179514178,0.62254126,112290.0,112280.0,0.001]
[1760179514407,0.51812611,112280.0,112270.0,0.00062914]
[1760179514638,0.53047611,112280.0,112270.0,0.00062914]
[1760179514836,0.59135611,112280.0,112270.0,0.00062914]
[1760179516062,0.59235611,112280.0,112270.0,0.00062914]
[1760179516269,0.59335611,112280.0,112270.0,0.00062914]
[1760179517511,0.59235611,112280.0,112270.0,0.00062914]
[1760179517731,0.59335611,112280.0,112270.0,0.00062914]
[1760179521686,0.6201559,112280.0,112270.0,0.00062914]
[1760179526595,0.5837259,112280.0,112270.0,0.02553914]
[1760179526933,0.6205459,112280.0,112270.0,0.00062914]
[1760179527388,0.6195459,112280.0,112270.0,0.00062914]
[1760179527930,0.6205459,112280.0,112270.0,0.00062914]
[1760179528133,0.6195459,112280.0,112270.0,0.00062914]
[1760179530171,0.6205459,112280.0,112270.0,0.00062914]
[1760179531331,0.6185459,112280.0,112270.0,0.00062914]
[1760179531732,0.6205459,112280.0,112270.0,0.00062914]
[1760179531943,0.6195459,112280.0,112270.0,0.00062914]
[1760179532176,0.6185459,112280.0,112270.0,0.00062914]
[1760179532667,0.6195459,112280.0,112270.0,0.00062914]
[1760179533475,0.6205459,112280.0,112270.0,0.00062914]
[1760179546334,0.5837259,112280.0,112270.0,0.02433914]
[1760179547390,0.5469259,112280.0,112270.0,0.07722914]